[Event "Early-Titled-Tuesday-Blitz-September-05-2023"]
[Site "Chess.com"]
[Date "2023.09.05"]
[Round "1"]
[White "Emp3rador"]
[Black "moro182"]
[Result "0-1"]
[WhiteElo "2468"]
[BlackElo "2844"]
[TimeControl "180+1"]
[EndTime "8:08:56 PDT"]
[Termination "moro182 won by resignation"]

1. e4 {[%clk 0:02:58]} 1... g6 {[%clk 0:03:00.9]} 2. d4 {[%clk 0:02:57.1]} 2...
Bg7 {[%clk 0:03:01.5]} 3. Nc3 {[%clk 0:02:56.1]} 3... a6 {[%clk 0:03:00.1]} 4.
h3 {[%clk 0:02:56.2]} 4... b5 {[%clk 0:02:59.1]} 5. g4 {[%clk 0:02:56.6]} 5...
Bb7 {[%clk 0:02:59.2]} 6. Bg2 {[%clk 0:02:56]} 6... d6 {[%clk 0:02:59.8]} 7.
Nge2 {[%clk 0:02:54.6]} 7... Nd7 {[%clk 0:02:58.2]} 8. O-O {[%clk 0:02:52]} 8...
e6 {[%clk 0:02:54.2]} 9. Be3 {[%clk 0:02:50.8]} 9... Nb6 {[%clk 0:02:49.5]} 10.
b3 {[%clk 0:02:46.7]} 10... h5 {[%clk 0:02:42.6]} 11. g5 {[%clk 0:02:40.6]}
11... Ne7 {[%clk 0:02:42.9]} 12. f4 {[%clk 0:02:35.4]} 12... O-O {[%clk
0:02:40]} 13. Qd2 {[%clk 0:02:34.8]} 13... Qc8 {[%clk 0:02:10.8]} 14. h4 {[%clk
0:02:08.8]} 14... c5 {[%clk 0:02:10.5]} 15. Rad1 {[%clk 0:01:58.7]} 15... Rd8
{[%clk 0:02:08.4]} 16. dxc5 {[%clk 0:01:53.3]} 16... dxc5 {[%clk 0:01:45.6]} 17.
Qxd8+ {[%clk 0:01:52]} 17... Qxd8 {[%clk 0:01:46.5]} 18. Rxd8+ {[%clk
0:01:52.1]} 18... Rxd8 {[%clk 0:01:47.4]} 19. Bxc5 {[%clk 0:01:52.4]} 19... Nec8
{[%clk 0:01:39.7]} 20. e5 {[%clk 0:01:35]} 20... Bxg2 {[%clk 0:01:35.7]} 21.
Kxg2 {[%clk 0:01:35.9]} 21... Rd2 {[%clk 0:01:31.9]} 22. Rc1 {[%clk 0:01:28.3]}
22... Bf8 {[%clk 0:01:31.8]} 23. Bxf8 {[%clk 0:01:26.6]} 23... Kxf8 {[%clk
0:01:30.7]} 24. Kf3 {[%clk 0:01:27.2]} 24... Ne7 {[%clk 0:01:29.3]} 25. Ne4
{[%clk 0:01:26.5]} 25... Rd8 {[%clk 0:01:26.6]} 26. N2g3 {[%clk 0:01:17.4]}
26... Rc8 {[%clk 0:01:14.5]} 27. c3 {[%clk 0:01:00.6]} 27... a5 {[%clk
0:01:03.9]} 28. Nd6 {[%clk 0:00:58.7]} 28... Rc5 {[%clk 0:00:55.9]} 29. Nge4
{[%clk 0:00:58.1]} 29... Rd5 {[%clk 0:00:52.7]} 30. Ke2 {[%clk 0:00:55]} 30...
Nf5 {[%clk 0:00:41.3]} 31. Nxf5 {[%clk 0:00:53.8]} 31... exf5 {[%clk 0:00:42.2]}
32. Nd6 {[%clk 0:00:51.7]} 32... Ke7 {[%clk 0:00:39.5]} 33. c4 {[%clk 0:00:49]}
33... bxc4 {[%clk 0:00:39.7]} 34. bxc4 {[%clk 0:00:49.9]} 34... Rc5 {[%clk
0:00:37]} 35. Kd3 {[%clk 0:00:47]} 35... Nd7 {[%clk 0:00:32]} 36. Kd4 {[%clk
0:00:45]} 36... Rc7 {[%clk 0:00:32.1]} 37. c5 {[%clk 0:00:44.8]} 37... Nf8
{[%clk 0:00:32.2]} 38. c6 {[%clk 0:00:40.2]} 38... Ne6+ {[%clk 0:00:32.2]} 39.
Ke3 {[%clk 0:00:40.5]} 39... Nd8 {[%clk 0:00:32.6]} 40. Rc5 {[%clk 0:00:33.1]}
40... Rxc6 {[%clk 0:00:23.3]} 41. Rxa5 {[%clk 0:00:30.5]} 41... Rc3+ {[%clk
0:00:23.3]} 42. Kd4 {[%clk 0:00:28.8]} 42... Rh3 {[%clk 0:00:21]} 43. Kd5 {[%clk
0:00:29.1]} 43... Rd3+ {[%clk 0:00:20.2]} 44. Kc4 {[%clk 0:00:29.2]} 44... Rf3
{[%clk 0:00:19.4]} 45. Kd5 {[%clk 0:00:28.3]} 45... Rd3+ {[%clk 0:00:19.2]} 46.
Kc4 {[%clk 0:00:28.7]} 46... Rd1 {[%clk 0:00:13.9]} 47. Ra7+ {[%clk 0:00:26.5]}
47... Ke6 {[%clk 0:00:14.1]} 48. Nc8 {[%clk 0:00:26.4]} 48... Nc6 {[%clk
0:00:13.8]} 49. Ra6 {[%clk 0:00:17.3]} 49... Rc1+ {[%clk 0:00:13.5]} 50. Kd3
{[%clk 0:00:16.8]} 50... Kd5 {[%clk 0:00:13.4]} 51. Nb6+ {[%clk 0:00:13.8]}
51... Kc5 {[%clk 0:00:13.8]} 52. Nd7+ {[%clk 0:00:13.9]} 52... Kd5 {[%clk
0:00:12.4]} 53. Nf6+ {[%clk 0:00:12.1]} 53... Kc5 {[%clk 0:00:12.5]} 54. Nd7+
{[%clk 0:00:12.6]} 54... Kb5 {[%clk 0:00:12]} 55. Rb6+ {[%clk 0:00:13.1]} 55...
Ka5 {[%clk 0:00:12.5]} 56. Rb2 {[%clk 0:00:11.4]} 56... Rd1+ {[%clk 0:00:11.6]}
57. Kc4 {[%clk 0:00:11.3]} 57... Rxd7 {[%clk 0:00:10.8]} 58. Kc5 {[%clk
0:00:12]} 58... Nd4 {[%clk 0:00:10.5]} 59. Rb8 {[%clk 0:00:11.3]} 59... Ka6
{[%clk 0:00:10.9]} 60. Rg8 {[%clk 0:00:10.6]} 60... Ne6+ {[%clk 0:00:10.7]} 61.
Kc4 {[%clk 0:00:10.7]} 61... Nxf4 {[%clk 0:00:10.1]} 62. Kc5 {[%clk 0:00:09]}
62... Ne6+ {[%clk 0:00:10.4]} 63. Kc6 {[%clk 0:00:08.9]} 63... Rc7+ {[%clk
0:00:10.8]} 64. Kd6 {[%clk 0:00:09.2]} 64... Rb7 {[%clk 0:00:10.7]} 65. Kc6
{[%clk 0:00:09.5]} 65... f4 {[%clk 0:00:10.2]} 66. Ra8+ {[%clk 0:00:08.9]} 66...
Ra7 {[%clk 0:00:10.6]} 67. Rb8 {[%clk 0:00:09.6]} 67... Rc7+ {[%clk 0:00:10]}
68. Kd6 {[%clk 0:00:09.5]} 68... Rb7 {[%clk 0:00:10.5]} 69. Ra8+ {[%clk
0:00:09.1]} 69... Ra7 {[%clk 0:00:10.7]} 70. Rb8 {[%clk 0:00:09.2]} 70... Rb7
{[%clk 0:00:10.2]} 71. Ra8+ {[%clk 0:00:09.4]} 71... Kb6 {[%clk 0:00:11.1]} 72.
Ra3 {[%clk 0:00:09.8]} 72... Ra7 {[%clk 0:00:05.9]} 73. Rb3+ {[%clk 0:00:10.1]}
73... Ka6 {[%clk 0:00:06.5]} 74. Kc6 {[%clk 0:00:10.2]} 74... Rc7+ {[%clk
0:00:06.4]} 75. Kd6 {[%clk 0:00:10.3]} 75... Rc4 {[%clk 0:00:07]} 76. Ke7 {[%clk
0:00:07.3]} 76... Rc7+ {[%clk 0:00:03.4]} 77. Kd6 {[%clk 0:00:06.4]} 77... Ka5
{[%clk 0:00:04]} 78. Re3 {[%clk 0:00:05.6]} 78... fxe3 {[%clk 0:00:03]} 0-1

[Event "Early-Titled-Tuesday-Blitz-September-05-2023"]
[Site "Chess.com"]
[Date "2023.09.05"]
[Round "1"]
[White "Rosh1610"]
[Black "Rodalquilar"]
[Result "0-1"]
[WhiteElo "2440"]
[BlackElo "2796"]
[TimeControl "180+1"]
[EndTime "8:09:00 PDT"]
[Termination "Rodalquilar won by checkmate"]

1. e4 {[%clk 0:02:59.2]} 1... d5 {[%clk 0:02:59.9]} 2. exd5 {[%clk 0:02:58.3]}
2... Qxd5 {[%clk 0:03:00.8]} 3. Nc3 {[%clk 0:02:58.1]} 3... Qa5 {[%clk
0:03:00.9]} 4. d4 {[%clk 0:02:57.4]} 4... Nf6 {[%clk 0:03:01]} 5. Nf3 {[%clk
0:02:56.3]} 5... Bf5 {[%clk 0:03:01]} 6. Bc4 {[%clk 0:02:56.1]} 6... e6 {[%clk
0:03:01.3]} 7. Bd2 {[%clk 0:02:56]} 7... Bb4 {[%clk 0:03:01.5]} 8. a3 {[%clk
0:02:55.1]} 8... Bxc3 {[%clk 0:03:01.8]} 9. Bxc3 {[%clk 0:02:55.9]} 9... Qb6
{[%clk 0:03:02.2]} 10. O-O {[%clk 0:02:54]} 10... Nc6 {[%clk 0:03:01.1]} 11. Ne5
{[%clk 0:02:47.8]} 11... Nxe5 {[%clk 0:03:01.1]} 12. dxe5 {[%clk 0:02:47.5]}
12... Rd8 {[%clk 0:03:01.8]} 13. Qf3 {[%clk 0:02:34.3]} 13... Ne4 {[%clk
0:02:43.3]} 14. Rad1 {[%clk 0:02:22.1]} 14... O-O {[%clk 0:02:40.7]} 15. h3
{[%clk 0:02:07.2]} 15... h6 {[%clk 0:02:20.6]} 16. a4 {[%clk 0:01:50.7]} 16...
Nxc3 {[%clk 0:01:57.8]} 17. Qxc3 {[%clk 0:01:49.9]} 17... Qc6 {[%clk 0:01:58.3]}
18. b3 {[%clk 0:01:29.5]} 18... Be4 {[%clk 0:01:57.6]} 19. f3 {[%clk 0:01:23]}
19... Bd5 {[%clk 0:01:58]} 20. Rd4 {[%clk 0:01:20]} 20... Bxc4 {[%clk
0:01:46.4]} 21. Rxc4 {[%clk 0:01:19.3]} 21... Qb6+ {[%clk 0:01:46.9]} 22. Kh1
{[%clk 0:01:17.6]} 22... c6 {[%clk 0:01:46.9]} 23. Rg4 {[%clk 0:01:16.6]} 23...
Rd5 {[%clk 0:01:41.5]} 24. f4 {[%clk 0:01:04.9]} 24... Qd4 {[%clk 0:01:31.9]}
25. Qg3 {[%clk 0:01:03.3]} 25... Qe4 {[%clk 0:00:57.8]} 26. Rxg7+ {[%clk
0:01:01.3]} 26... Kh8 {[%clk 0:00:58.5]} 27. Rg4 {[%clk 0:00:52]} 27... Qf5
{[%clk 0:00:53.6]} 28. Qh4 {[%clk 0:00:50]} 28... Kh7 {[%clk 0:00:50.1]} 29. Rf2
{[%clk 0:00:35.8]} 29... Rd7 {[%clk 0:00:29.6]} 30. Rg5 {[%clk 0:00:34.5]} 30...
Qe4 {[%clk 0:00:28]} 31. Rh5 {[%clk 0:00:26.3]} 31... Rg8 {[%clk 0:00:14.1]} 32.
Rxh6+ {[%clk 0:00:21.7]} 32... Kg7 {[%clk 0:00:14.6]} 33. Rh5 {[%clk 0:00:14.3]}
33... Kf8 {[%clk 0:00:14.2]} 34. Rg5 {[%clk 0:00:14.2]} 34... Rxg5 {[%clk
0:00:10.4]} 35. Qxg5 {[%clk 0:00:08.7]} 35... Rd1+ {[%clk 0:00:10.3]} 36. Kh2
{[%clk 0:00:08.8]} 36... Qe1 {[%clk 0:00:10.9]} 37. Qh6+ {[%clk 0:00:08.5]}
37... Ke8 {[%clk 0:00:09.1]} 38. Kg3 {[%clk 0:00:08.9]} 38... Rd2 {[%clk
0:00:08.2]} 39. Qh8+ {[%clk 0:00:08.2]} 39... Kd7 {[%clk 0:00:08.3]} 40. Kg4
{[%clk 0:00:06.4]} 40... Qxf2 {[%clk 0:00:08.1]} 41. g3 {[%clk 0:00:06.6]} 41...
Qe2+ {[%clk 0:00:08]} 42. Kh4 {[%clk 0:00:06.7]} 42... Qe4 {[%clk 0:00:07.4]}
43. Qf8 {[%clk 0:00:05]} 43... Qh7+ {[%clk 0:00:06.5]} 44. Kg4 {[%clk
0:00:04.7]} 44... Qg6+ {[%clk 0:00:07]} 45. Kh4 {[%clk 0:00:05.1]} 45... Kc7
{[%clk 0:00:05]} 46. Qe7+ {[%clk 0:00:05]} 46... Rd7 {[%clk 0:00:05.6]} 47. Qc5
{[%clk 0:00:04.8]} 47... Rd8 {[%clk 0:00:05.3]} 48. Qa5+ {[%clk 0:00:02.9]}
48... Kc8 {[%clk 0:00:04.9]} 49. g4 {[%clk 0:00:02.9]} 49... Rh8+ {[%clk
0:00:04.6]} 50. Kg3 {[%clk 0:00:03.1]} 50... Qh6 {[%clk 0:00:05.5]} 51. Qxa7
{[%clk 0:00:03.1]} 51... Qxh3+ {[%clk 0:00:05.5]} 52. Kf2 {[%clk 0:00:03.5]}
52... Qh2+ {[%clk 0:00:06.1]} 53. Ke1 {[%clk 0:00:04]} 53... Qh1+ {[%clk
0:00:05.5]} 54. Kd2 {[%clk 0:00:04.4]} 54... Rh2+ {[%clk 0:00:05.3]} 55. Kc3
{[%clk 0:00:04.6]} 55... Qg2 {[%clk 0:00:05.3]} 56. Qa8+ {[%clk 0:00:03.5]}
56... Kc7 {[%clk 0:00:05.8]} 57. Qa5+ {[%clk 0:00:04.1]} 57... Kd7 {[%clk
0:00:05.9]} 58. Qb6 {[%clk 0:00:04]} 58... Qxc2+ {[%clk 0:00:05.3]} 59. Kb4
{[%clk 0:00:04.7]} 59... Qd2+ {[%clk 0:00:04.2]} 60. Ka3 {[%clk 0:00:05.2]}
60... Kc8 {[%clk 0:00:04.5]} 61. Qa7 {[%clk 0:00:04.3]} 61... Qc1+ {[%clk
0:00:04.5]} 62. Kb4 {[%clk 0:00:03.5]} 62... Qxf4+ {[%clk 0:00:04.8]} 63. Ka3
{[%clk 0:00:03.9]} 63... Qc1+ {[%clk 0:00:05.2]} 64. Kb4 {[%clk 0:00:04.3]}
64... Qe1+ {[%clk 0:00:05.8]} 65. Ka3 {[%clk 0:00:04.5]} 65... Qxe5 {[%clk
0:00:06.6]} 66. Qa8+ {[%clk 0:00:04.2]} 66... Qb8 {[%clk 0:00:07]} 67. Qa5
{[%clk 0:00:04.9]} 67... Qd6+ {[%clk 0:00:05.9]} 68. b4 {[%clk 0:00:03.4]} 68...
Qd3# {[%clk 0:00:05.5]} 0-1

[Event "Early-Titled-Tuesday-Blitz-September-05-2023"]
[Site "Chess.com"]
[Date "2023.09.05"]
[Round "1"]
[White "NelsonLinda"]
[Black "frederiksvane"]
[Result "0-1"]
[WhiteElo "2500"]
[BlackElo "2930"]
[TimeControl "180+1"]
[EndTime "8:09:11 PDT"]
[Termination "frederiksvane won by resignation"]

1. b3 {[%clk 0:03:00.9]} 1... d5 {[%clk 0:02:58.1]} 2. Bb2 {[%clk 0:03:00.4]}
2... Nf6 {[%clk 0:02:58.4]} 3. Nf3 {[%clk 0:02:57]} 3... c6 {[%clk 0:02:58.5]}
4. g3 {[%clk 0:02:56.6]} 4... Bg4 {[%clk 0:02:57.5]} 5. Ne5 {[%clk 0:02:56.3]}
5... Bh5 {[%clk 0:02:57.1]} 6. Bg2 {[%clk 0:02:56.5]} 6... e6 {[%clk 0:02:55.7]}
7. d3 {[%clk 0:02:54.8]} 7... Be7 {[%clk 0:02:55.8]} 8. Nd2 {[%clk 0:02:54.9]}
8... Nbd7 {[%clk 0:02:54.7]} 9. Ndf3 {[%clk 0:02:54.6]} 9... O-O {[%clk
0:02:54.3]} 10. O-O {[%clk 0:02:54.8]} 10... a5 {[%clk 0:02:50.1]} 11. a3 {[%clk
0:02:53.7]} 11... Nxe5 {[%clk 0:02:46.3]} 12. Nxe5 {[%clk 0:02:53.7]} 12... Nd7
{[%clk 0:02:46.1]} 13. Nxd7 {[%clk 0:02:40.6]} 13... Qxd7 {[%clk 0:02:47]} 14.
Qd2 {[%clk 0:02:40.9]} 14... b5 {[%clk 0:02:42.6]} 15. e4 {[%clk 0:02:38.7]}
15... dxe4 {[%clk 0:02:37.8]} 16. Bxe4 {[%clk 0:02:39.6]} 16... Bg6 {[%clk
0:02:38.1]} 17. Bg2 {[%clk 0:02:38.5]} 17... Rfd8 {[%clk 0:02:32.6]} 18. Rfe1
{[%clk 0:02:26.5]} 18... h6 {[%clk 0:02:30.9]} 19. Rab1 {[%clk 0:02:25.5]} 19...
Ra6 {[%clk 0:02:27.6]} 20. h4 {[%clk 0:02:21.7]} 20... c5 {[%clk 0:02:27.4]} 21.
Qf4 {[%clk 0:02:09.7]} 21... Bd6 {[%clk 0:01:58.4]} 22. Qg4 {[%clk 0:02:07.2]}
22... h5 {[%clk 0:01:58.9]} 23. Qg5 {[%clk 0:02:00.6]} 23... a4 {[%clk
0:01:59.2]} 24. Be4 {[%clk 0:01:47.8]} 24... Be7 {[%clk 0:01:52.9]} 25. Qe5
{[%clk 0:01:43.5]} 25... f6 {[%clk 0:01:52.1]} 26. Qf4 {[%clk 0:01:38.5]} 26...
e5 {[%clk 0:01:50.9]} 27. Qe3 {[%clk 0:01:38.1]} 27... Bf7 {[%clk 0:01:42.5]}
28. bxa4 {[%clk 0:01:31.7]} 28... Rxa4 {[%clk 0:01:43.4]} 29. Qf3 {[%clk
0:01:32]} 29... Ra6 {[%clk 0:01:37.5]} 30. Bc1 {[%clk 0:01:19]} 30... g6 {[%clk
0:01:21.7]} 31. Qe2 {[%clk 0:01:16.2]} 31... Bf8 {[%clk 0:01:18.7]} 32. Rd1
{[%clk 0:01:00]} 32... c4 {[%clk 0:01:11.3]} 33. Bf3 {[%clk 0:00:54.7]} 33...
Rd6 {[%clk 0:01:09.2]} 34. Be3 {[%clk 0:00:51.3]} 34... cxd3 {[%clk 0:01:07.2]}
35. cxd3 {[%clk 0:00:51]} 35... Rxd3 {[%clk 0:00:59.1]} 36. Rxd3 {[%clk
0:00:51.3]} 36... Qxd3 {[%clk 0:00:59.8]} 37. Qxd3 {[%clk 0:00:51.3]} 37... Rxd3
{[%clk 0:01:00.7]} 38. Rxb5 {[%clk 0:00:50.6]} 38... Rxa3 {[%clk 0:01:00.2]} 39.
Rb8 {[%clk 0:00:38]} 39... Kg7 {[%clk 0:00:57.8]} 40. Kg2 {[%clk 0:00:31.6]}
40... Rc3 {[%clk 0:00:55.1]} 41. Rb7 {[%clk 0:00:30.4]} 41... Kg8 {[%clk
0:00:50]} 42. Rb8 {[%clk 0:00:28.2]} 42... Kg7 {[%clk 0:00:34.6]} 43. Rb7 {[%clk
0:00:24.4]} 43... Kg8 {[%clk 0:00:30.7]} 44. Rb8 {[%clk 0:00:24.5]} 44... Be6
{[%clk 0:00:26.7]} 45. Bb7 {[%clk 0:00:18.3]} 45... Kf7 {[%clk 0:00:21.3]} 46.
Bf3 {[%clk 0:00:11.2]} 46... Rc7 {[%clk 0:00:21.1]} 47. Bb6 {[%clk 0:00:10.8]}
47... Rd7 {[%clk 0:00:20.2]} 48. Bc6 {[%clk 0:00:08]} 48... Bd5+ {[%clk
0:00:20.4]} 49. Bxd5+ {[%clk 0:00:08]} 49... Rxd5 {[%clk 0:00:21.3]} 50. Rb7+
{[%clk 0:00:08.3]} 50... Be7 {[%clk 0:00:21.7]} 51. Be3 {[%clk 0:00:06.5]} 51...
Ke6 {[%clk 0:00:22.2]} 52. Rb6+ {[%clk 0:00:07]} 52... Bd6 {[%clk 0:00:22.8]}
53. Ra6 {[%clk 0:00:06.8]} 53... Kf5 {[%clk 0:00:23.1]} 54. Ra4 {[%clk
0:00:06.7]} 54... Rb5 {[%clk 0:00:20.3]} 55. Kf3 {[%clk 0:00:06.2]} 55... Rb3
{[%clk 0:00:20.1]} 56. Rc4 {[%clk 0:00:05.5]} 56... Bb4 {[%clk 0:00:19]} 57. Kg2
{[%clk 0:00:04.9]} 57... Rb2 {[%clk 0:00:18.5]} 58. Rc8 {[%clk 0:00:04.6]} 58...
Bd6 {[%clk 0:00:18.1]} 59. Rd8 {[%clk 0:00:04.7]} 59... Be7 {[%clk 0:00:16.3]}
60. Re8 {[%clk 0:00:05.2]} 60... Ba3 {[%clk 0:00:14.5]} 61. Ra8 {[%clk
0:00:05.2]} 61... Rb3 {[%clk 0:00:15]} 62. Ra6 {[%clk 0:00:05.2]} 62... Bb2
{[%clk 0:00:14.4]} 63. Ra2 {[%clk 0:00:05.1]} 63... Bd4 {[%clk 0:00:13.8]} 64.
Bd2 {[%clk 0:00:05.5]} 64... Ke4 {[%clk 0:00:12.6]} 65. Rc2 {[%clk 0:00:05.6]}
65... f5 {[%clk 0:00:11.7]} 66. Bg5 {[%clk 0:00:05.2]} 66... Kd3 {[%clk
0:00:11.7]} 67. Rd2+ {[%clk 0:00:04.8]} 67... Kc3 {[%clk 0:00:12]} 68. Ra2
{[%clk 0:00:05.1]} 68... Rb1 {[%clk 0:00:11.4]} 69. Ra3+ {[%clk 0:00:04.5]}
69... Kb4 {[%clk 0:00:11.1]} 70. Ra8 {[%clk 0:00:04.5]} 70... Kc4 {[%clk
0:00:10.9]} 71. Rc8+ {[%clk 0:00:04.6]} 71... Kd5 {[%clk 0:00:11.4]} 72. Ra8
{[%clk 0:00:04.9]} 72... Rb2 {[%clk 0:00:11.3]} 73. Kh3 {[%clk 0:00:03]} 73...
Rxf2 {[%clk 0:00:10.8]} 74. Rd8+ {[%clk 0:00:03]} 74... Ke4 {[%clk 0:00:11.3]}
75. Ra8 {[%clk 0:00:02.7]} 75... Rc2 {[%clk 0:00:11.1]} 76. Ra4 {[%clk
0:00:02.7]} 76... Kd3 {[%clk 0:00:11.5]} 77. Ra3+ {[%clk 0:00:03.1]} 77... Rc3
{[%clk 0:00:11.9]} 78. Ra2 {[%clk 0:00:03.3]} 78... e4 {[%clk 0:00:12.1]} 79.
Rd2+ {[%clk 0:00:02.9]} 79... Kc4 {[%clk 0:00:12.6]} 80. Rxd4+ {[%clk
0:00:02.3]} 80... Kxd4 {[%clk 0:00:12.8]} 81. Bf6+ {[%clk 0:00:03.2]} 81... Kd3
{[%clk 0:00:13.3]} 82. Bxc3 {[%clk 0:00:04.1]} 82... Kxc3 {[%clk 0:00:13.9]} 83.
g4 {[%clk 0:00:05]} 83... hxg4+ {[%clk 0:00:13.9]} 84. Kg3 {[%clk 0:00:05.6]}
84... e3 {[%clk 0:00:14.5]} 85. Kf4 {[%clk 0:00:06.5]} 85... e2 {[%clk
0:00:15.1]} 86. h5 {[%clk 0:00:07.4]} 86... gxh5 {[%clk 0:00:15.3]} 87. Kg5
{[%clk 0:00:07.9]} 87... e1=Q {[%clk 0:00:15.7]} 88. Kh6 {[%clk 0:00:08.8]}
88... f4 {[%clk 0:00:16]} 89. Kg7 {[%clk 0:00:09.7]} 89... f3 {[%clk 0:00:16.3]}
90. Kh7 {[%clk 0:00:10.6]} 0-1

[Event "Early-Titled-Tuesday-Blitz-September-05-2023"]
[Site "Chess.com"]
[Date "2023.09.05"]
[Round "1"]
[White "Herzog2012"]
[Black "AsadliVugar"]
[Result "0-1"]
[WhiteElo "2437"]
[BlackElo "2790"]
[TimeControl "180+1"]
[EndTime "8:09:20 PDT"]
[Termination "AsadliVugar won by checkmate"]

1. e4 {[%clk 0:02:57.3]} 1... c5 {[%clk 0:02:59.6]} 2. Nf3 {[%clk 0:02:57.1]}
2... Nc6 {[%clk 0:02:59.7]} 3. d4 {[%clk 0:02:57.6]} 3... cxd4 {[%clk
0:02:59.5]} 4. Nxd4 {[%clk 0:02:58.5]} 4... Nf6 {[%clk 0:03:00]} 5. Nc3 {[%clk
0:02:59.1]} 5... e5 {[%clk 0:03:00.3]} 6. Ndb5 {[%clk 0:02:58.7]} 6... d6 {[%clk
0:03:00.8]} 7. Nd5 {[%clk 0:02:58.3]} 7... Nxd5 {[%clk 0:03:00.1]} 8. exd5
{[%clk 0:02:59.2]} 8... Ne7 {[%clk 0:03:00.8]} 9. c3 {[%clk 0:02:56.3]} 9... Nf5
{[%clk 0:02:59.1]} 10. a4 {[%clk 0:02:52.3]} 10... Be7 {[%clk 0:02:55.7]} 11.
Bd3 {[%clk 0:02:50.5]} 11... O-O {[%clk 0:02:48]} 12. O-O {[%clk 0:02:37.4]}
12... Nh4 {[%clk 0:02:45.4]} 13. f4 {[%clk 0:02:31.6]} 13... a6 {[%clk
0:02:40.3]} 14. Na3 {[%clk 0:02:27.2]} 14... exf4 {[%clk 0:02:36.2]} 15. Bxf4
{[%clk 0:02:01.5]} 15... f5 {[%clk 0:02:33.8]} 16. Nc4 {[%clk 0:01:53.6]} 16...
Ng6 {[%clk 0:02:07.4]} 17. Be3 {[%clk 0:01:20.8]} 17... Bd7 {[%clk 0:02:06.1]}
18. Qc2 {[%clk 0:01:06.5]} 18... f4 {[%clk 0:02:01.1]} 19. Bxg6 {[%clk
0:01:03.4]} 19... hxg6 {[%clk 0:01:58]} 20. Bxf4 {[%clk 0:01:00.1]} 20... b5
{[%clk 0:01:56.3]} 21. Ne3 {[%clk 0:00:34.4]} 21... g5 {[%clk 0:01:51.4]} 22.
Bg3 {[%clk 0:00:33.9]} 22... Qb6 {[%clk 0:01:51.7]} 23. Qd2 {[%clk 0:00:30.3]}
23... bxa4 {[%clk 0:01:47]} 24. Bf2 {[%clk 0:00:25.3]} 24... Qb5 {[%clk
0:01:41.3]} 25. Nc2 {[%clk 0:00:15.7]} 25... Rab8 {[%clk 0:01:39.6]} 26. Rab1
{[%clk 0:00:13.9]} 26... Bf5 {[%clk 0:01:37]} 27. Nd4 {[%clk 0:00:10.9]} 27...
Qxd5 {[%clk 0:01:36.3]} 28. Rbe1 {[%clk 0:00:10.8]} 28... Bf6 {[%clk 0:01:34.7]}
29. Qd1 {[%clk 0:00:09.8]} 29... Bd7 {[%clk 0:01:31.7]} 30. Qc2 {[%clk
0:00:07.8]} 30... Rbe8 {[%clk 0:01:26.6]} 31. Rxe8 {[%clk 0:00:07.3]} 31... Rxe8
{[%clk 0:01:26.8]} 32. Qd3 {[%clk 0:00:07.5]} 32... Bb5 {[%clk 0:01:25.3]} 33.
Qg6 {[%clk 0:00:07.4]} 33... Qf7 {[%clk 0:01:24.4]} 34. Qxf7+ {[%clk 0:00:04.8]}
34... Kxf7 {[%clk 0:01:24.8]} 35. Re1 {[%clk 0:00:05.7]} 35... Rb8 {[%clk
0:01:22.9]} 36. Nf5 {[%clk 0:00:06]} 36... Be5 {[%clk 0:01:15.6]} 37. Bd4 {[%clk
0:00:04.9]} 37... Bd7 {[%clk 0:01:12.1]} 38. Bxe5 {[%clk 0:00:03.1]} 38... Bxf5
{[%clk 0:01:12.5]} 39. Bxd6 {[%clk 0:00:01.8]} 39... Rxb2 {[%clk 0:01:13]} 40.
Re7+ {[%clk 0:00:02.7]} 40... Kg6 {[%clk 0:01:12.6]} 41. Ra7 {[%clk 0:00:02.9]}
41... Bd3 {[%clk 0:01:10]} 42. g4 {[%clk 0:00:03.2]} 42... Rb3 {[%clk
0:01:08.5]} 43. Be5 {[%clk 0:00:03.5]} 43... a3 {[%clk 0:01:05.6]} 44. Rxg7+
{[%clk 0:00:04.1]} 44... Kh6 {[%clk 0:01:06]} 45. c4 {[%clk 0:00:04.1]} 45... a2
{[%clk 0:01:05.7]} 46. Rg8 {[%clk 0:00:02.5]} 46... a1=Q+ {[%clk 0:01:03.2]} 47.
Kf2 {[%clk 0:00:03.4]} 47... Rb1 {[%clk 0:01:04.1]} 48. Bxa1 {[%clk 0:00:03.1]}
48... Rxa1 {[%clk 0:01:04.6]} 49. c5 {[%clk 0:00:02.7]} 49... Rc1 {[%clk
0:01:04.8]} 50. Ke3 {[%clk 0:00:03]} 50... Bb5 {[%clk 0:01:03.4]} 51. Kd4 {[%clk
0:00:02.5]} 51... Rc2 {[%clk 0:01:03.6]} 52. Rh8+ {[%clk 0:00:02.2]} 52... Kg7
{[%clk 0:01:03.6]} 53. Rh5 {[%clk 0:00:02.6]} 53... Kg6 {[%clk 0:01:03.8]} 54.
h4 {[%clk 0:00:03.2]} 54... gxh4 {[%clk 0:01:04]} 55. Rxh4 {[%clk 0:00:04.1]}
55... Rd2+ {[%clk 0:01:03.8]} 56. Ke5 {[%clk 0:00:03.9]} 56... Bc6 {[%clk
0:01:01.7]} 57. Ke6 {[%clk 0:00:04.4]} 57... Rd5 {[%clk 0:00:59.2]} 58. Rh5
{[%clk 0:00:04.1]} 58... Rd4 {[%clk 0:00:55.6]} 59. Ke7 {[%clk 0:00:02.2]} 59...
a5 {[%clk 0:00:53.7]} 60. Re5 {[%clk 0:00:02.6]} 60... Rd7+ {[%clk 0:00:48.8]}
61. Ke6 {[%clk 0:00:02.8]} 61... a4 {[%clk 0:00:48.1]} 62. Re3 {[%clk
0:00:02.5]} 62... Rd4 {[%clk 0:00:42.8]} 63. Rc3 {[%clk 0:00:03.2]} 63... Kg5
{[%clk 0:00:41.9]} 64. Ke5 {[%clk 0:00:02.5]} 64... Rd5+ {[%clk 0:00:41.9]} 65.
Ke6 {[%clk 0:00:01.9]} 65... Rd1 {[%clk 0:00:39.9]} 66. Ke5 {[%clk 0:00:01.6]}
66... Kxg4 {[%clk 0:00:39.8]} 67. Ke6 {[%clk 0:00:02.2]} 67... Kf4 {[%clk
0:00:38.9]} 68. Rc4+ {[%clk 0:00:02.5]} 68... Ke3 {[%clk 0:00:38.8]} 69. Rb4
{[%clk 0:00:03.1]} 69... Rd5 {[%clk 0:00:36.4]} 70. Rb6 {[%clk 0:00:02.3]} 70...
Rxc5 {[%clk 0:00:36.3]} 71. Kd6 {[%clk 0:00:02.9]} 71... Rc3 {[%clk 0:00:36.8]}
72. Ra6 {[%clk 0:00:02.2]} 72... Kd4 {[%clk 0:00:36.3]} 73. Ra5 {[%clk
0:00:02.6]} 73... Kd3 {[%clk 0:00:34.8]} 74. Ke5 {[%clk 0:00:01.5]} 74... Rc4
{[%clk 0:00:33.8]} 75. Kd6 {[%clk 0:00:01.4]} 75... Kc3 {[%clk 0:00:33.6]} 76.
Ra6 {[%clk 0:00:01.8]} 76... Kb3 {[%clk 0:00:32.1]} 77. Ra8 {[%clk 0:00:02.1]}
77... a3 {[%clk 0:00:31.4]} 78. Rb8+ {[%clk 0:00:03]} 78... Rb4 {[%clk
0:00:31.5]} 79. Rh8 {[%clk 0:00:02.2]} 79... a2 {[%clk 0:00:31.8]} 80. Rh1
{[%clk 0:00:03.1]} 80... Be4 {[%clk 0:00:29.4]} 81. Rh3+ {[%clk 0:00:03.5]}
81... Ka4 {[%clk 0:00:28.8]} 82. Rh1 {[%clk 0:00:04.1]} 82... Bb1 {[%clk
0:00:29]} 83. Rh8 {[%clk 0:00:03.7]} 83... Rb5 {[%clk 0:00:29.1]} 84. Ra8+
{[%clk 0:00:04.6]} 84... Ra5 {[%clk 0:00:29.3]} 85. Rb8 {[%clk 0:00:04.6]} 85...
a1=Q {[%clk 0:00:28.7]} 86. Kc6 {[%clk 0:00:02.6]} 86... Qc3+ {[%clk 0:00:28.1]}
87. Kd6 {[%clk 0:00:03.1]} 87... Qe5+ {[%clk 0:00:27.8]} 88. Kd7 {[%clk
0:00:02.7]} 88... Bf5+ {[%clk 0:00:27.1]} 89. Kc6 {[%clk 0:00:03.4]} 89... Qc5+
{[%clk 0:00:25.9]} 90. Kb7 {[%clk 0:00:03]} 90... Ra7# {[%clk 0:00:25.4]} 0-1